[Event "CRO Team Cup 2019"]
[Site "Losinj"]
[Date "2019.05.16"]
[Round "2.16"]
[White "Boric, Muhamed"]
[Black "Petrov, Jole"]
[Result "1/2-1/2"]
[ECO "A05"]
[WhiteElo "2342"]
[BlackElo "2406"]
[Annotator "RC"]
[PlyCount "124"]
[EventDate "2019.05.15"]
[EventType "team-tourn"]
[EventCountry "CRO"]
[SourceTitle "playchess.com"]
[Source "ChessBase"]
[SourceQuality "1"]
[TimeControl "40/5400+30:1800+30"]

1. Nf3 {[%emt 0:00:00]} Nf6 {[%emt 0:06:30]} 2. g3 {[%emt 0:05:00]} b5 {[%emt 0:00:30]} 3. Bg2 {[%emt 0:00:30]} Bb7 {[%emt 0:00:30]} 4. O-O {[%emt 0:00:30]} e6 {[%emt 0:00:30]} 5. d3 {[%emt 0:01:30]} d5 {[%emt 0:00:30]} 6. e4 {[%emt 0:01:30]} Be7 {[%emt 0:02:30]} 7. exd5 {[%emt 0:05:30]} Nxd5 {[%emt 0:43:30]} 8. Nd4 {[%emt 0:05:30]} c6 {[%emt 0:04:30]} 9. a4 {[%emt 0:16:30]} b4 {[%emt 0:06:30]} 10. Nb3 {[%emt 0:08:30]} a5 {[%emt 0:02:30]} 11. N1d2 {[%emt 0:00:30]} O-O {[%emt 0:03:30]} 12. Nc4 {[%emt 0:00:30]} Qc7 {[%emt 0:01:30]} 13. Qg4 {[%emt 0:10:30]} Nd7 {[%emt 0:01:30]} 14. Re1 {[%emt 0:09:30]} N7f6 {[%emt 0:01:30]} 15. Qe2 {[%emt 0:00:30]} c5 {[%emt 0:00:30]} 16. Qe5 {[%emt 0:01:30]} Qd8 {[%emt 0:01:30]} 17. Bg5 {[%emt 0:03:30]} Ra6 {[%emt 0:05:30]} 18. Ne3 {[%emt 0:07:30]} Bd6 {[%emt 0:02:55]} 19. Bxf6 {[%emt 0:00:30]} Nxf6 {[%emt 0:01:36]} 20. Qg5 {[%emt 0:00:30]} h6 {[%emt 0:04:50]} 21. Qh4 {[%emt 0:00:30]} Bxg2 {[%emt 0:01:02]} 22. Kxg2 {[%emt 0:00:30]} Qa8+ {[%emt 0:00:15]} 23. Kg1 {[%emt 0:00:00]} Qc6 {[%emt 0:00:20]} 24. Nc4 {[%emt 0:00:00]} Bc7 {[%emt 0:03:20]} 25. Qh3 {[%emt 0:00:30]} Rc8 {[%emt 0:01:16]} 26. Qg2 {[%emt 0:00:30]} Nd5 {[%emt 0:00:46]} 27. Qf3 {[%emt 0:02:57]} Bd8 {[%emt 0:00:18]} 28. h4 {[%emt 0:02:42]} Qc7 {[%emt 0:00:19]} 29. Kg2 {[%emt 0:03:17]} Bf6 {[%emt 0:00:17]} 30. Re4 {[%emt 0:00:27]} Ra7 {[%emt 0:01:34]} 31. Re2 {[%emt 0:02:04]} Nb6 {[%emt 0:01:00]} 32. Nbd2 {[%emt 0:00:43]} Nd5 {[%emt 0:00:30]} 33. Nb3 {[%emt 0:00:00]} g6 {[%emt 0:01:54]} 34. Nbd2 {[%emt 0:08:40]} Bg7 {[%emt 0:00:09]} 35. Rf1 {[%emt 0:00:00]} Qc6 {[%emt 0:00:48]} 36. b3 {[%emt 0:00:01]} Qc7 {[%emt 0:00:23]} 37. Ne4 {[%emt 0:01:41]} Ra6 {[%emt 0:00:21]} 38. Kh1 {[%emt 0:00:17]} Rd8 {[%emt 0:00:32]} 39. Ned2 {[%emt 0:00:38]} Ra7 {[%emt 0:00:27]} 40. Qg2 {[%emt 0:01:25]} Ra6 {[%emt 0:00:44]} 41. Nf3 {[%emt 0:30:54]} Raa8 {[%emt 0:30:36]} 42. Nfd2 {[%emt 0:01:13]} Re8 {[%emt 0:00:21]} 43. Rfe1 {[%emt 0:00:27]} Rad8 {[%emt 0:00:39]} 44. Rf1 {[%emt 0:01:28]} Kh7 {[%emt 0:00:24]} 45. Qf3 {[%emt 0:00:10]} Nc3 {[%emt 0:00:51]} 46. Ree1 {[%emt 0:00:00]} f5 {[%emt 0:00:00]} 47. h5 {[%emt 0:00:00]} g5 {[%emt 0:00:00]} 48. Rxe6 {[%emt 0:00:00]} Rf8 {[%emt 0:00:00]} 49. Rfe1 {[%emt 0:00:00]} g4 {[%emt 0:00:00]} 50. Qc6 {[%emt 0:00:00]} Qf7 {[%emt 0:00:00]} 51. Rg6 {[%emt 0:00:00]} Rc8 {[%emt 0:00:00]} 52. Qd6 {[%emt 0:00:00]} Rce8 {[%emt 0:00:00]} 53. Ree6 {[%emt 0:00:00]} f4 {[%emt 0:00:00]} 54. gxf4 {[%emt 0:00:00]} Rd8 {[%emt 0:00:00]} 55. Re7 {[%emt 0:00:00]} Rxd6 {[%emt 0:00:00]} 56. Rxf7 {[%emt 0:00:00]} Rxf7 {[%emt 0:00:00]} 57. Nxd6 {[%emt 0:00:00]} Rxf4 {[%emt 0:00:00]} 58. N6e4 {[%emt 0:01:09]} Nd1 {[%emt 0:00:00]} 59. Kg2 {[%emt 0:00:50]} Bd4 {[%emt 0:00:00]} 60. Kg3 {[%emt 0:00:16]} Be5 {[%emt 0:00:00]} 61. Kg2 {[%emt 0:01:00]} Bd4 {[%emt 0:00:00]} 62. Kg3 {[%emt 0:03:56]} Be5 {[%emt 0:00:00]} 1/2-1/2

[Event "CRO Team Cup 2019"]
[Site "Losinj"]
[Date "2019.05.16"]
[Round "2.17"]
[White "Biti, Ozren"]
[Black "Saric, Ante"]
[Result "1/2-1/2"]
[ECO "B23"]
[WhiteElo "2366"]
[BlackElo "2534"]
[Annotator "RC"]
[PlyCount "34"]
[EventDate "2019.05.15"]
[EventType "team-tourn"]
[EventCountry "CRO"]
[SourceTitle "playchess.com"]
[Source "ChessBase"]
[SourceQuality "1"]
[TimeControl "40/5400+30:1800+30"]

1. e4 {[%emt 0:00:30]} c5 {[%emt 0:00:30]} 2. Nc3 {[%emt 0:00:00]} Nc6 {[%emt 0:00:30]} 3. Bb5 {[%emt 0:01:00]} Nd4 {[%emt 0:00:00]} 4. Bc4 {[%emt 0:00:30]} e6 {[%emt 0:00:00]} 5. Nge2 {[%emt 0:00:30]} Nf6 {[%emt 0:00:30]} 6. O-O {[%emt 0:00:30]} a6 {[%emt 0:00:00]} 7. a4 {[%emt 0:00:30]} d5 {[%emt 0:01:00]} 8. exd5 {[%emt 0:00:30]} exd5 {[%emt 0:00:30]} 9. Ba2 {[%emt 0:00:30]} Nxe2+ {[%emt 0:00:30]} 10. Qxe2+ {[%emt 0:00:30]} Be7 {[%emt 0:00:00]} 11. d3 {[%emt 0:03:30]} Be6 {[%emt 0:01:00]} 12. Bg5 {[%emt 0:01:30]} O-O {[%emt 0:01:30]} 13. Qf3 {[%emt 0:02:30]} Rb8 {[%emt 0:02:30]} 14. Rfb1 {[%emt 0:18:30]} Bg4 {[%emt 0:06:30]} 15. Qg3 {[%emt 0:02:30]} Be6 {[%emt 0:00:30]} 16. Qf3 {[%emt 0:01:30]} Bg4 {[%emt 0:02:30]} 17. Qg3 {[%emt 0:00:30]} Be6 {[%emt 0:00:30]} 1/2-1/2

[Event "CRO Team Cup 2019"]
[Site "Losinj"]
[Date "2019.05.16"]
[Round "2.20"]
[White "Cotic, Borna"]
[Black "Vargic, Drago"]
[Result "0-1"]
[ECO "C06"]
[WhiteElo "2103"]
[BlackElo "2274"]
[Annotator "RC"]
[PlyCount "130"]
[EventDate "2019.05.15"]
[EventType "team-tourn"]
[EventCountry "CRO"]
[SourceTitle "playchess.com"]
[Source "ChessBase"]
[SourceQuality "1"]
[TimeControl "40/5400+30:1800+30"]

1. e4 {[%emt 0:00:30]} e6 {[%emt 0:00:30]} 2. d4 {[%emt 0:00:00]} d5 {[%emt 0:00:30]} 3. Nd2 {[%emt 0:00:00]} Nf6 {[%emt 0:01:30]} 4. e5 {[%emt 0:00:30]} Nfd7 {[%emt 0:00:30]} 5. Bd3 {[%emt 0:00:30]} c5 {[%emt 0:00:00]} 6. c3 {[%emt 0:00:00]} Nc6 {[%emt 0:00:00]} 7. Ne2 {[%emt 0:00:00]} cxd4 {[%emt 0:02:30]} 8. cxd4 {[%emt 0:00:30]} Nb6 {[%emt 0:07:30]} 9. O-O {[%emt 0:01:30]} a5 {[%emt 0:00:30]} 10. Nf3 {[%emt 0:07:30]} a4 {[%emt 0:02:30]} 11. Bg5 {[%emt 0:13:30]} Be7 {[%emt 0:02:30]} 12. Bxe7 {[%emt 0:01:30]} Qxe7 {[%emt 0:00:30]} 13. Nc3 {[%emt 0:06:30]} O-O {[%emt 0:04:30]} 14. Rc1 {[%emt 0:07:30]} f6 {[%emt 0:03:30]} 15. exf6 {[%emt 0:02:30]} Qxf6 {[%emt 0:07:30]} 16. Bb5 {[%emt 0:01:30]} a3 {[%emt 0:08:30]} 17. b3 {[%emt 0:04:30]} Bd7 {[%emt 0:07:30]} 18. Na4 {[%emt 0:11:30]} Nxa4 {[%emt 0:02:30]} 19. Bxa4 {[%emt 0:05:30]} Be8 {[%emt 0:03:30]} 20. Bxc6 {[%emt 0:01:30]} Bxc6 {[%emt 0:03:30]} 21. Qd2 {[%emt 0:01:30]} Qe7 {[%emt 0:03:30]} 22. Ne5 {[%emt 0:01:30]} Bb5 {[%emt 0:00:30]} 23. Rfe1 {[%emt 0:00:30]} Rf6 {[%emt 0:06:30]} 24. Rc5 {[%emt 0:01:30]} Be8 {[%emt 0:06:30]} 25. Rec1 {[%emt 0:00:30]} Qd6 {[%emt 0:00:30]} 26. Rc8 {[%emt 0:01:30]} Rxc8 {[%emt 0:01:30]} 27. Rxc8 {[%emt 0:00:00]} Rf8 {[%emt 0:00:00]} 28. g3 {[%emt 0:04:00]} h6 {[%emt 0:00:00]} 29. Kg2 {[%emt 0:00:30]} Bb5 {[%emt 0:02:30]} 30. Rxf8+ {[%emt 0:00:30]} Qxf8 {[%emt 0:00:30]} 31. Qc2 {[%emt 0:02:30]} Ba6 {[%emt 0:02:30]} 32. Qg6 {[%emt 0:07:38]} Qe7 {[%emt 0:04:24]} 33. Ng4 {[%emt 0:03:12]} Kf8 {[%emt 0:03:24]} 34. Ne5 {[%emt 0:01:20]} Kg8 {[%emt 0:00:30]} 35. Ng4 {[%emt 0:01:44]} Kf8 {[%emt 0:00:52]} 36. Qh7 {[%emt 0:02:56]} Ke8 {[%emt 0:00:25]} 37. Ne5 {[%emt 0:00:44]} Kd8 {[%emt 0:00:17]} 38. Qc2 {[%emt 0:01:42]} Bb5 {[%emt 0:03:10]} 39. Qc3 {[%emt 0:00:35]} Be2 {[%emt 0:01:18]} 40. Qa5+ {[%emt 0:01:05]} Kc8 {[%emt 0:00:37]} 41. b4 {[%emt 0:34:35]} Kb8 {[%emt 0:32:59]} 42. Qxa3 {[%emt 0:00:54]} Qc7 {[%emt 0:01:23]} 43. Qb2 {[%emt 0:00:50]} Bb5 {[%emt 0:00:12]} 44. Qd2 {[%emt 0:00:56]} g5 {[%emt 0:00:00]} 45. a3 {[%emt 0:00:00]} Qh7 {[%emt 0:00:00]} 46. Qd1 {[%emt 0:00:00]} Qe4+ {[%emt 0:00:00]} 47. f3 {[%emt 0:00:00]} Qe3 {[%emt 0:00:00]} 48. a4 {[%emt 0:00:00]} Bc4 {[%emt 0:00:00]} 49. b5 {[%emt 0:00:00]} Kc7 {[%emt 0:00:00]} 50. Ng4 {[%emt 0:00:00]} Qc3 {[%emt 0:00:00]} 51. Nxh6 {[%emt 0:00:00]} Qb2+ {[%emt 0:00:00]} 52. Kg1 {[%emt 0:01:16]} Be2 {[%emt 0:00:00]} 53. Qe1 {[%emt 0:00:18]} Qxd4+ {[%emt 0:00:00]} 54. Qf2 {[%emt 0:00:51]} Qd1+ {[%emt 0:00:00]} 55. Kg2 {[%emt 0:00:06]} d4 {[%emt 0:00:00]} 56. Nf7 {[%emt 0:00:56]} b6 {[%emt 0:00:00]} 57. Nxg5 {[%emt 0:01:37]} Kd6 {[%emt 0:00:00]} 58. Ne4+ {[%emt 0:00:41]} Kd5 {[%emt 0:00:00]} 59. h4 {[%emt 0:00:53]} Qc2 {[%emt 0:00:00]} 60. Kh3 {[%emt 0:01:38]} Qd1 {[%emt 0:05:10]} 61. Ng5 {[%emt 0:01:11]} Bd3 {[%emt 0:02:46]} 62. g4 {[%emt 0:01:01]} e5 {[%emt 0:00:28]} 63. h5 {[%emt 0:00:33]} Qc1 {[%emt 0:03:15]} 64. Kh4 {[%emt 0:00:39]} Bb1 {[%emt 0:01:28]} 65. Nh3 {[%emt 0:00:35]} d3 {[%emt 0:05:11]} 0-1

[Event "CRO Team Cup 2019"]
[Site "Losinj"]
[Date "2019.05.16"]
[Round "3.1"]
[White "Saric, Ivan"]
[Black "Lalic, Bogdan"]
[Result "1/2-1/2"]
[ECO "C84"]
[WhiteElo "2694"]
[BlackElo "2400"]
[Annotator "RC"]
[PlyCount "77"]
[EventDate "2019.05.15"]
[EventType "team-tourn"]
[EventCountry "CRO"]
[SourceTitle "playchess.com"]
[Source "ChessBase"]
[SourceQuality "1"]
[TimeControl "40/5400+30:1800+30"]

1. e4 {[%emt 0:00:30]} e5 {[%emt 0:07:30]} 2. Nf3 {[%emt 0:00:00]} Nc6 {[%emt 0:00:30]} 3. Bb5 {[%emt 0:00:00]} a6 {[%emt 0:00:00]} 4. Ba4 {[%emt 0:00:00]} Nf6 {[%emt 0:00:00]} 5. O-O {[%emt 0:00:00]} Be7 {[%emt 0:01:30]} 6. d3 {[%emt 0:03:30]} d6 {[%emt 0:00:30]} 7. c3 {[%emt 0:00:30]} O-O {[%emt 0:00:30]} 8. Re1 {[%emt 0:00:30]} b5 {[%emt 0:00:30]} 9. Bc2 {[%emt 0:00:30]} Nb8 {[%emt 0:00:30]} 10. d4 {[%emt 0:03:30]} Nbd7 {[%emt 0:05:30]} 11. Nbd2 {[%emt 0:00:30]} Bb7 {[%emt 0:00:30]} 12. Nf1 {[%emt 0:02:30]} Re8 {[%emt 0:00:00]} 13. Ng3 {[%emt 0:00:00]} Bf8 {[%emt 0:00:00]} 14. a4 {[%emt 0:05:00]} c5 {[%emt 0:01:30]} 15. d5 {[%emt 0:00:30]} c4 {[%emt 0:00:00]} 16. Bg5 {[%emt 0:08:30]} h6 {[%emt 0:00:00]} 17. Be3 {[%emt 0:00:30]} Nc5 {[%emt 0:09:30]} 18. Qd2 {[%emt 0:12:30]} Qc7 {[%emt 0:01:30]} 19. h3 {[%emt 0:00:30]} Nfd7 {[%emt 0:00:30]} 20. Nh2 {[%emt 0:06:30]} Nb6 {[%emt 0:01:30]} 21. a5 {[%emt 0:02:30]} Nba4 {[%emt 0:01:30]} 22. Ng4 {[%emt 0:10:30]} Nxb2 {[%emt 0:00:30]} 23. Bxh6 {[%emt 0:03:30]} Bc8 {[%emt 0:07:30]} 24. Nf5 {[%emt 0:08:30]} f6 {[%emt 0:05:30]} 25. Be3 {[%emt 0:05:30]} Nbd3 {[%emt 0:01:30]} 26. Bxc5 {[%emt 0:01:30]} Nxc5 {[%emt 0:00:30]} 27. Re3 {[%emt 0:03:30]} Bxf5 {[%emt 0:08:30]} 28. exf5 {[%emt 0:00:30]} Kf7 {[%emt 0:01:30]} 29. Rg3 {[%emt 0:00:30]} Ke7 {[%emt 0:00:00]} 30. h4 {[%emt 0:00:30]} Kd8 {[%emt 0:00:00]} 31. h5 {[%emt 0:00:30]} Qf7 {[%emt 0:01:30]} 32. h6 {[%emt 0:02:30]} gxh6 {[%emt 0:00:30]} 33. Nxh6 {[%emt 0:00:30]} Qh7 {[%emt 0:02:30]} 34. Rg6 {[%emt 0:02:02]} Bxh6 {[%emt 0:00:00]} 35. Rxh6 {[%emt 0:00:09]} Qg7 {[%emt 0:00:00]} 36. Rg6 {[%emt 0:00:07]} Qh8 {[%emt 0:00:00]} 37. Rh6 {[%emt 0:06:13]} Qg7 {[%emt 0:00:00]} 38. Rg6 {[%emt 0:00:00]} Qh8 {[%emt 0:00:30]} 39. Rh6 {[%emt 0:11:16]} 1/2-1/2

[Event "CRO Team Cup 2019"]
[Site "Losinj"]
[Date "2019.05.16"]
[Round "3.5"]
[White "Martinovic, Sasa"]
[Black "Kozul, Zdenko"]
[Result "1-0"]
[ECO "E94"]
[WhiteElo "2560"]
[BlackElo "2582"]
[Annotator "ChessBase"]
[PlyCount "77"]
[EventDate "2019.05.15"]
[EventType "team-tourn"]
[EventCountry "CRO"]
[SourceTitle "playchess.com"]
[Source "ChessBase"]
[SourceQuality "1"]
[TimeControl "40/5400+30:1800+30"]

1. d4 {[%emt 0:00:30]} Nf6 {[%emt 0:03:30]} 2. c4 {[%emt 0:00:00]} g6 {[%emt 0:00:30]} 3. Nc3 {[%emt 0:00:00]} Bg7 {[%emt 0:00:30]} 4. e4 {[%emt 0:00:00]} d6 {[%emt 0:00:30]} 5. h3 {[%emt 0:00:00]} O-O {[%emt 0:00:30]} 6. Nf3 {[%emt 0:00:00]} c6 {[%emt 0:01:30]} 7. Be3 {[%emt 0:00:00]} Na6 {[%emt 0:00:30]} 8. Bd3 {[%emt 0:00:30]} e5 {[%emt 0:04:30]} 9. O-O {[%emt 0:00:30]} Nh5 {[%emt 0:13:30]} 10. Re1 {[%emt 0:00:00]} Nf4 {[%emt 0:14:30]} 11. Bf1 {[%emt 0:00:00]} c5 {[%emt 0:00:30]} 12. d5 {[%emt 0:12:30]} h6 {[%emt 0:15:30]} 13. Kh2 {[%emt 0:13:30]} g5 {[%emt 0:00:30]} 14. g3 {[%emt 0:02:30]} Ng6 {[%emt 0:00:00]} 15. Nd2 {[%emt 0:02:30]} Qd7 {[%emt 0:06:00]} 16. a3 {[%emt 0:13:30]} Bf6 {[%emt 0:01:30]} 17. Rb1 {[%emt 0:07:30]} Kg7 {[%emt 0:01:30]} 18. Qh5 {[%emt 0:09:30]} Bd8 {[%emt 0:01:30]} 19. b4 {[%emt 0:01:30]} Bb6 {[%emt 0:00:30]} 20. Be2 {[%emt 0:02:30]} Qd8 {[%emt 0:05:30]} 21. Na4 {[%emt 0:06:30]} cxb4 {[%emt 0:04:30]} 22. Nxb6 {[%emt 0:00:30]} axb6 {[%emt 0:00:30]} 23. axb4 {[%emt 0:00:00]} f5 {[%emt 0:01:30]} 24. f4 {[%emt 0:03:00]} Rh8 {[%emt 0:10:18]} 25. Bd3 {[%emt 0:04:30]} Qf6 {[%emt 0:00:43]} 26. Rf1 {[%emt 0:08:33]} exf4 {[%emt 0:01:20]} 27. gxf4 {[%emt 0:00:13]} gxf4 {[%emt 0:00:09]} 28. exf5 {[%emt 0:05:57]} Ne5 {[%emt 0:09:53]} 29. Bd4 {[%emt 0:00:17]} Kf8 {[%emt 0:00:38]} 30. Ne4 {[%emt 0:03:50]} Nf3+ {[%emt 0:01:45]} 31. Rxf3 {[%emt 0:00:15]} Qxd4 {[%emt 0:00:09]} 32. Nxd6 {[%emt 0:00:57]} Ke7 {[%emt 0:00:54]} 33. Nb5 {[%emt 0:03:05]} Qf6 {[%emt 0:00:05]} 34. Rxf4 {[%emt 0:00:57]} Nxb4 {[%emt 0:01:01]} 35. Qe2+ {[%emt 0:00:47]} Kd8 {[%emt 0:00:06]} 36. Rxb4 {[%emt 0:00:06]} Re8 {[%emt 0:00:26]} 37. Qf2 {[%emt 0:00:19]} Ra1 {[%emt 0:00:56]} 38. d6 {[%emt 0:01:01]} Ree1 {[%emt 0:00:13]} 39. Qxb6+ {[%emt 0:00:00]} 1-0

[Event "CRO Team Cup 2019"]
[Site "Losinj"]
[Date "2019.05.16"]
[Round "3.11"]
[White "Franic, Milan"]
[Black "Filipovic, Marko"]
[Result "1-0"]
[ECO "A58"]
[WhiteElo "2388"]
[BlackElo "2324"]
[Annotator "NA RC"]
[PlyCount "141"]
[EventDate "2019.05.15"]
[EventType "team-tourn"]
[EventCountry "CRO"]
[SourceTitle "playchess.com"]
[Source "ChessBase"]
[SourceQuality "1"]
[TimeControl "40/5400+30:1800+30"]

{[%evp 22,139,43,65,59,32767,32767,32767,32767,32767,64,65,73,32767,95,68,32767,32767,104,32767,102,88,32767,98,92,72,120,90,107,111,107,32767,105,87,91,104,108,77,92,17,126,129,138,138,130,135,166,136,144,146,156,158,145,80,95,32767,29,32767,40,29,98,60,47,51,72,50,32767,61,32767,108,32767,32767,32767,0,28,0,39,50,39,44,40,50,43,32767,37,36,44,45,32767,58,62,62,449,598,559,577,559,32767,32767,32767,32767,341,603,743,743,516,486,586,839,405,354,32767,388,297,349,377,5735,29963,5689,5795]} 1. d4 {[%emt 0:03:30]} Nf6 {[%emt 0:00:30]} 2. c4 {[%emt 0:00:00]} c5 {[%emt 0:00:30]} 3. d5 {[%emt 0:00:00]} b5 {[%emt 0:00:30]} 4. cxb5 {[%emt 0:00:30]} a6 {[%emt 0:00:00]} 5. bxa6 {[%emt 0:00:00]} Bxa6 {[%emt 0:00:00]} 6. Nc3 {[%emt 0:00:00]} g6 {[%emt 0:00:30]} 7. Nf3 {[%emt 0:00:00]} d6 {[%emt 0:00:30]} 8. Nd2 {[%emt 0:00:00]} Bg7 {[%emt 0:01:30]} 9. e4 {[%emt 0:00:30]} Bxf1 {[%emt 0:00:30]} 10. Nxf1 {[%emt 0:00:00]} O-O {[%emt 0:08:30]} 11. Ne3 {[%emt 0:00:00]} Qa5 {[%emt 0:08:30]} 12. O-O {[%emt 0:00:30]} Nbd7 {[%emt 0:01:30]} 13. Qc2 {[%emt 0:02:30] A58: Benko/Volga Gambit: Lines with 5 bxa6} Rfb8 {[%emt 0:08:30]} 14. Bd2 {[%emt 0:03:30]} Ne8 {[%emt 0:13:30]} (14... Nb6 15. b3 Qa6 16. a4 Ne8 17. h4 Bd4 18. Ra2 Nd7 19. Nc4 Ne5 20. Ne2 Nxc4 21. bxc4 {½-½ (36) Sasikiran,K (2637)-Faizulaev,A (2405) Abu Dhabi 2016}) 15. b3 {[%emt 0:02:30]} Nc7 {[%emt 0:01:30]} 16. a4 {[%emt 0:00:30]} Qa6 {[%emt 0:02:30]} 17. Rab1 {[%emt 0:01:30]} Ne5 {[%emt 0:08:30]} 18. Rfd1 $146 {[%emt 0:06:30]} ({Predecessor:} 18. Kh1 Nd3 19. Nc4 Nb4 20. Qd1 e6 21. dxe6 fxe6 {½-½ (42) Banovic,I (2190)-Stanojevic,B (2183) Novi Sad 2017}) 18... Nd3 {[%emt 0:09:30]} 19. Be1 {[%emt 0:03:30]} Nxe1 {[%emt 0:07:30]} 20. Rxe1 {[%emt 0:00:30]} Rb4 {[%emt 0:02:30]} 21. Ne2 {[%emt 0:09:30]} Rab8 {[%emt 0:03:30]} 22. Nc4 {[%emt 0:04:30]} Na8 {[%emt 0:01:16]} 23. Nc3 {[%emt 0:05:30]} Nc7 {[%emt 0:07:14]} 24. Red1 {[%emt 0:03:30]} Bd4 {[%emt 0:02:25]} 25. Ne2 {[%emt 0:01:30]} Bg7 {[%emt 0:00:22]} 26. g3 {[%emt 0:03:30]} Na8 {[%emt 0:01:30]} 27. Nf4 {[%emt 0:14:30]} R4b7 {[%emt 0:01:59]} 28. Ng2 {[%emt 0:08:30]} Rb4 {[%emt 0:02:18]} 29. Nge3 {[%emt 0:00:30]} Bd4 {[%emt 0:00:21]} 30. Qd3 {[%emt 0:04:30]} (30. h3 $16) 30... R4b7 {[%emt 0:02:23]} (30... Bxe3 $1 $11 {remains equal.} 31. Qxe3 Nb6) 31. Nc2 {[%emt 0:02:30]} Bg7 {[%emt 0:00:15]} 32. N2a3 {[%emt 0:04:34]} Nc7 {[%emt 0:00:11]} 33. Kg2 {[%emt 0:00:00]} Bd4 {[%emt 0:00:39]} 34. Nc2 {[%emt 0:00:25]} Bg7 {[%emt 0:01:32]} 35. f4 {[%emt 0:03:00]} Rd8 {[%emt 0:01:53]} 36. Qf3 {[%emt 0:01:04]} e6 {[%emt 0:01:00]} 37. dxe6 {[%emt 0:08:28]} (37. g4 $18) 37... fxe6 {[%emt 0:00:14]} 38. f5 {[%emt 0:00:34]} exf5 {[%emt 0:01:24]} 39. exf5 {[%emt 0:00:09]} d5 {[%emt 0:00:09]} 40. N2e3 {[%emt 0:00:53]} d4 {[%emt 0:00:46]} (40... Bd4 $14 41. Na3 Bxe3 42. Qxe3 d4) 41. fxg6 {[%emt 0:32:24]} hxg6 {[%emt 0:31:30]} 42. Ng4 {[%emt 0:00:00]} Nd5 {[%emt 0:00:00]} 43. Rf1 {[%emt 0:00:00]} Nc3 {[%emt 0:00:00]} 44. Rbe1 {[%emt 0:00:00]} Rf8 {[%emt 0:00:00]} (44... d3 $14) 45. Qd3 {[%emt 0:00:00]} Rxf1 {[%emt 0:00:00]} 46. Rxf1 {[%emt 0:00:00]} Qc6+ {[%emt 0:00:00]} 47. Kh3 {[%emt 0:00:00]} (47. Rf3 $16 Kh7 48. Na5) 47... Qe6 {[%emt 0:00:00]} 48. Nd2 {[%emt 0:00:00]} Nd5 {[%emt 0:00:00]} 49. Qe4 {[%emt 0:00:00]} Qxe4 {[%emt 0:00:00]} 50. Nxe4 {[%emt 0:00:00]} Rxb3 {[%emt 0:00:00]} 51. Nxc5 {[%emt 0:00:00]} Rc3 {[%emt 0:00:13]} 52. Ne6 {[%emt 0:00:00]} d3 {[%emt 0:01:43]} 53. Rd1 {[%emt 0:01:29]} Ra3 {[%emt 0:00:20]} 54. Nf2 {[%emt 0:01:26]} Rxa4 {[%emt 0:02:38]} 55. Rxd3 {[%emt 0:00:09]} Ra5 {[%emt 0:00:22]} 56. Ne4 {[%emt 0:00:39]} Ne7 $2 {[%emt 0:02:17]} ({Better is} 56... Bf8 $14) 57. Rd8+ {[%emt 0:00:40]} Kh7 {[%emt 0:00:13]} 58. Rd7 {[%emt 0:00:51]} Nf5 {[%emt 0:00:33]} 59. g4 {[%emt 0:03:33]} Ra3+ {[%emt 0:00:12]} 60. Kg2 {[%emt 0:00:03]} Ra2+ {[%emt 0:00:40]} 61. Kg1 {[%emt 0:00:15]} (61. Kf3 $142 Nd4+ 62. Nxd4) 61... Ra1+ {[%emt 0:00:23]} (61... Kh6 $142 62. h3 Ra4 63. gxf5 Rxe4 64. Nxg7 Kg5) 62. Kf2 {[%emt 0:00:12]} Ra2+ {[%emt 0:00:27]} 63. Ke1 {[%emt 0:02:47]} Ra1+ {[%emt 0:00:28]} 64. Ke2 {[%emt 0:00:20]} Ra2+ {[%emt 0:00:04]} 65. Nd2 {[%emt 0:00:15]} Kh6 {[%emt 0:01:17]} 66. gxf5 {[%emt 0:00:32]} Be5 {[%emt 0:00:27]} 67. fxg6 {[%emt 0:02:40]} (67. h3 {[%emt 0:02:14]}) 67... Kxg6 {[%emt 0:00:30]} 68. h3 {[%emt 0:00:30]} Ra6 {[%emt 0:00:30]} 69. Nd4 {[%emt 0:00:30]} Rd6 {[%emt 0:00:30]} 70. Rxd6+ $18 {[%emt 0:00:30]} Bxd6 {[%emt 0:00:30]} 71. Kf3 {[%emt 0:00:30]} 1-0

[Event "CRO Team Cup 2019"]
[Site "Losinj"]
[Date "2019.05.16"]
[Round "3.12"]
[White "Vargic, Drago"]
[Black "Valkovic, Kristian"]
[Result "1/2-1/2"]
[ECO "B09"]
[WhiteElo "2274"]
[BlackElo "2055"]
[Annotator "ChessBase"]
[PlyCount "108"]
[EventDate "2019.05.15"]
[EventType "team-tourn"]
[EventCountry "CRO"]
[SourceTitle "playchess.com"]
[Source "ChessBase"]
[SourceQuality "1"]
[TimeControl "40/5400+30:1800+30"]

1. e4 {[%emt 0:01:30]} d6 {[%emt 0:00:30]} 2. d4 {[%emt 0:00:30]} Nf6 {[%emt 0:00:00]} 3. Nc3 {[%emt 0:00:30]} g6 {[%emt 0:00:00]} 4. f4 {[%emt 0:01:30]} Bg7 {[%emt 0:00:00]} 5. Nf3 {[%emt 0:01:30]} O-O {[%emt 0:00:00]} 6. e5 {[%emt 0:02:30]} dxe5 {[%emt 0:00:30]} 7. fxe5 {[%emt 0:00:30]} Nd5 {[%emt 0:01:30]} 8. Bc4 {[%emt 0:04:30]} Be6 {[%emt 0:10:30]} 9. Bb3 {[%emt 0:10:30]} c5 {[%emt 0:08:30]} 10. Ne4 {[%emt 0:24:30]} cxd4 {[%emt 0:08:30]} 11. Nxd4 {[%emt 0:15:30]} Bxe5 {[%emt 0:10:30]} 12. Bh6 {[%emt 0:02:30]} Bg7 {[%emt 0:14:30]} 13. Bxg7 {[%emt 0:00:30]} Kxg7 {[%emt 0:00:30]} 14. Ng5 {[%emt 0:05:30]} Qa5+ {[%emt 0:07:30]} 15. c3 {[%emt 0:05:30]} Nf4 {[%emt 0:05:30]} 16. Ngxe6+ {[%emt 0:05:43]} fxe6 {[%emt 0:01:30]} 17. O-O {[%emt 0:00:15]} e5 {[%emt 0:03:30]} 18. Rxf4 {[%emt 0:02:18]} Rxf4 {[%emt 0:00:30]} 19. Ne6+ {[%emt 0:00:38]} Kh6 {[%emt 0:02:30]} 20. g3 {[%emt 0:00:40]} Qb6+ {[%emt 0:03:38]} 21. Kh1 {[%emt 0:01:27]} Re4 {[%emt 0:02:24]} 22. Bd5 {[%emt 0:05:54]} Nd7 {[%emt 0:09:26]} 23. Qd2+ {[%emt 0:02:04]} Qe3 {[%emt 0:00:35]} 24. Qd1 {[%emt 0:03:31]} Nf6 {[%emt 0:01:25]} 25. Bxe4 {[%emt 0:01:10]} Qxe4+ {[%emt 0:02:21]} 26. Kg1 {[%emt 0:00:12]} Qe3+ {[%emt 0:00:52]} 27. Kg2 {[%emt 0:00:09]} Qe4+ {[%emt 0:01:27]} 28. Qf3 {[%emt 0:00:33]} Qxf3+ {[%emt 0:04:01]} 29. Kxf3 {[%emt 0:00:50]} Rc8 {[%emt 0:00:31]} 30. Rd1 {[%emt 0:00:30]} Rc6 {[%emt 0:00:30]} 31. Nd8 {[%emt 0:00:30]} Rb6 {[%emt 0:00:30]} 32. b3 {[%emt 0:00:30]} Kg7 {[%emt 0:00:30]} 33. c4 {[%emt 0:00:30]} a5 {[%emt 0:00:30]} 34. c5 {[%emt 0:00:30]} Rb4 {[%emt 0:00:17]} 35. c6 {[%emt 0:00:45]} bxc6 {[%emt 0:00:39]} 36. Nxc6 {[%emt 0:00:05]} Rb5 {[%emt 0:00:59]} 37. Nxe7 {[%emt 0:00:14]} a4 {[%emt 0:00:44]} 38. bxa4 {[%emt 0:00:47]} Ra5 {[%emt 0:00:15]} 39. Nc6 {[%emt 0:00:20]} e4+ {[%emt 0:00:23]} 40. Kf4 {[%emt 0:00:38]} g5+ {[%emt 0:00:45]} 41. Ke3 {[%emt 0:30:27]} Rxa4 {[%emt 0:00:18]} 42. Rd2 {[%emt 0:00:00]} Ng4+ {[%emt 0:04:30]} 43. Ke2 {[%emt 0:00:00]} Nxh2 {[%emt 0:02:30]} 44. Rd7+ {[%emt 0:00:00]} Kg6 {[%emt 0:02:30]} 45. Ra7 {[%emt 0:00:00]} Rxa7 {[%emt 0:00:30]} 46. Nxa7 {[%emt 0:00:00]} Ng4 {[%emt 0:06:39]} 47. a4 {[%emt 0:00:00]} Ne5 {[%emt 0:00:36]} 48. a5 {[%emt 0:00:00]} Nc4 {[%emt 0:00:21]} 49. a6 {[%emt 0:00:00]} Nb6 {[%emt 0:01:14]} 50. Nc6 {[%emt 0:00:00]} Kf5 {[%emt 0:02:23]} 51. a7 {[%emt 0:00:00]} Kg4 {[%emt 0:01:32]} 52. Ne7 {[%emt 0:00:00]} Kxg3 {[%emt 0:02:11]} 53. Nd5 {[%emt 0:00:00]} Na8 {[%emt 0:00:10]} 54. Nf6 {[%emt 0:00:00]} Kf4 {[%emt 0:01:32]} 1/2-1/2